fUSD/lending_fUSD_20251231
["ID","MTS","AMOUNT","RATE_DAILY","PERIOD"]
[400136833,1767145848445,-602881.94372735,0.00017,2]
[400136836,1767145848459,-548.15193719,0.00017,2]
[400137493,1767146993342,163.95812027,0.00030137,120]
[400137509,1767147031795,-951.24215,0.00015049,2]
[400137510,1767147031806,-500.0,0.00015049,2]
[400137511,1767147031817,-133.86283767,0.00015049,2]
[400137512,1767147031829,-116.13716233,0.00015049,2]
[400137513,1767147031840,-257.16256505,0.00015269,2]
[400137514,1767147031953,-14.87831224,0.00015269,2]
[400137515,1767147031964,-250.0,0.00015345,2]
[400137516,1767147031974,-300.0,0.00015536,2]
[400137517,1767147031986,-595.01976495,0.00015537,2]
[400137518,1767147031997,-200.0,0.00015537,2]
[400137519,1767147032007,-207.4,0.00015537,2]
[400137520,1767147032017,-215.0738,0.00015537,2]
[400137521,1767147032027,-223.0315306,0.00015537,2]
[400137522,1767147032037,-349.01360406,0.00015537,2]
[400137523,1767147032047,-164.42395186,0.000156,2]
[400137524,1767147032057,-483.56462593,0.00015743,2]
[400137525,1767147032070,-516.43537407,0.00015743,2]
[400137526,1767147032080,-211.90249699,0.00015889,2]
[400137528,1767147032092,-117.69816543,0.00015889,2]
[400137529,1767147032103,-186.54534455,0.00015955,2]
[400137531,1767147032120,-264.59999972,0.00015955,2]
[400137533,1767147032132,-12863.71465573,0.00015955,2]
[400137535,1767147032142,-167.53,0.0001609,2]
[400137536,1767147032152,-565.35,0.00016192,2]
[400137537,1767147032162,-13.33385418,0.00016192,2]
[400137538,1767147032175,-168.52614582,0.00016192,2]
[400137539,1767147032184,-1041.58874819,0.00016192,2]
[400137558,1767147037808,-206.89125181,0.00016192,2]
[400137559,1767147037820,-174.77,0.00016192,2]
[400137560,1767147037833,-151.0,0.00016316,2]
[400137561,1767147037844,-151.0,0.00016316,2]
[400137562,1767147037855,-140.47007424,0.0001634,2]
[400137563,1767147037869,-791.20191441,0.0001634,2]
[400137564,1767147037883,-504.60801135,0.0001634,2]
[400137565,1767147037895,-151.0,0.00016345,2]
[400137566,1767147037906,-151.0,0.00016345,2]
[400137567,1767147037918,-1240.96358606,0.00016438,2]
[400137568,1767147037938,-97.63641394,0.00016438,2]
[400137569,1767147037949,-203.246612,0.00016525,2]
[400137570,1767147037961,-250.0,0.00016554,2]
[400137571,1767147037972,-702.14653253,0.000166,2]
[400137572,1767147037989,-297.85346747,0.000166,2]
[400137573,1767147038000,-88.31153203,0.00016626,2]
[400137574,1767147038014,-771.94446797,0.00016626,2]
[400137575,1767147038025,-160.28243005,0.00016626,2]
[400137576,1767147038036,-550.0,0.00016699,2]
[400137577,1767147038048,-195.33977358,0.000167,2]
[400137578,1767147038057,-2543.36492716,0.000167,2]
[400137579,1767147038070,-3636.82058928,0.000167,2]
[400137580,1767147038083,-10516.64293417,0.000167,2]
[400137581,1767147038097,-1103.16022683,0.000167,2]
[400137582,1767147038111,-1238.95791096,0.000167,2]
[400137583,1767147038125,-1036.62175766,0.000167,2]
[400137584,1767147038140,-1827.41417981,0.000167,2]
[400137586,1767147038183,-3257.28895896,0.000167,2]
[400137734,1767147039804,-395.92311807,0.000167,2]
[400137738,1767147039831,-1271.30369275,0.000167,2]
[400137742,1767147039859,-1516.79057988,0.000167,2]
[400137744,1767147039876,-315.32000001,0.000167,2]
[400137747,1767147039891,-1729.9999,0.000167,2]
[400137750,1767147039912,-1649.6059058,0.000167,2]
[400137753,1767147039926,-4279.88647833,0.000167,2]
[400137756,1767147039943,-367.18398157,0.000167,2]
[400137758,1767147039958,-261.46709967,0.000167,2]
[400137761,1767147039972,-843.40981153,0.000167,2]
[400137772,1767147040073,-37791.54944756,0.000167,2]
[400137775,1767147040086,-1000.0,0.000167,2]
[400137777,1767147040098,-1023.0,0.000167,2]
[400137779,1767147040110,-1000.0,0.000167,2]
[400137781,1767147040121,-1000.0,0.000167,2]
[400137784,1767147040132,-2668.81344291,0.000167,2]
[400137786,1767147040144,-1000.0,0.000167,2]
[400137788,1767147040154,-2500.0,0.000167,2]
[400137790,1767147040166,-506.38512295,0.0001679,2]
[400137792,1767147040178,-500.0,0.0001679,2]
[400137795,1767147040188,-337.00282267,0.0001679,2]
[400137797,1767147040199,-500.0,0.0001679,2]
[400137799,1767147040211,-500.0,0.0001679,2]
[400137801,1767147040224,-500.0,0.0001679,2]
[400137805,1767147040248,-500.0,0.0001679,2]
[400137807,1767147040260,-250.0,0.0001679,2]
[400137809,1767147040272,-500.0,0.0001679,2]
[400137812,1767147040284,-224.30157027,0.0001679,2]
[400137814,1767147040296,-500.0,0.0001679,2]
[400137816,1767147040308,-151.0,0.0001679,2]
[400137819,1767147040322,-151.0,0.0001679,2]
[400137821,1767147040335,-151.0,0.0001679,2]
[400137823,1767147040347,-169.10348076,0.0001679,2]
[400137826,1767147040358,-500.0,0.0001679,2]
[400137828,1767147040371,-395.9411582,0.0001679,2]
[400137830,1767147040384,-353.71600007,0.00016799,2]
[400137832,1767147040397,-241.38360577,0.00016799,2]
[400137834,1767147040407,-500.0,0.00016799,2]
[400137836,1767147040418,-315.00700232,0.00016799,2]
[400137839,1767147040429,-328.15,0.00016799,2]
[400137841,1767147040439,-500.0,0.00016799,2]
[400137843,1767147040449,-500.0,0.00016799,2]
[400137845,1767147040461,-500.0,0.00016799,2]
[400137847,1767147040472,-326.93715144,0.00016799,2]
[400137849,1767147040482,-500.0,0.00016799,2]
[400137851,1767147040492,-500.0,0.00016799,2]
[400137854,1767147040503,-500.0,0.00016799,2]
[400137856,1767147040515,-500.0,0.00016799,2]
[400137858,1767147040527,-500.0,0.00016799,2]
[400137861,1767147040540,-500.0,0.00016799,2]
[400137863,1767147040552,-500.0,0.00016799,2]
[400137865,1767147040563,-160.07922682,0.00016799,2]
[400137867,1767147040573,-500.0,0.00016799,2]
[400137869,1767147040583,-500.0,0.00016799,2]
[400137872,1767147040598,-500.0,0.00016799,2]
[400137874,1767147040614,-500.0,0.00016799,2]
[400137876,1767147040624,-2341.0,0.000168,2]
[400137878,1767147040635,-1000000.0,0.000168,2]
[400137880,1767147040645,-311.6855798,0.000168,2]
[400137882,1767147040655,-33533.3694,0.000169,2]
[400137885,1767147040666,-1000.0,0.000169,2]
[400137887,1767147040676,-1009.0,0.000169,2]
[400137889,1767147040687,-971.2325465,0.00016979,2]
[400137891,1767147040699,-29455.6268007,0.00016979,2]
[400137893,1767147040711,-964.8275443,0.00016979,2]
[400137896,1767147040722,-268.0,0.00016994,2]
[400137898,1767147040734,-478.38900651,0.00016999,2]
[400137900,1767147040745,-500.0,0.00016999,2]
[400137902,1767147040757,-500.0,0.00016999,2]
[400137905,1767147040768,-150817.59631822,0.00017,2]
[400137907,1767147040779,-200.0,0.00017,2]
[400137909,1767147040790,-200.0,0.00017,2]
[400137911,1767147040800,-411.30581747,0.00017,2]
[400137913,1767147040810,-175.36774246,0.00017,2]
[400137915,1767147040820,-151.0,0.00017,2]
[400137917,1767147040830,-328.15,0.00017073,2]
[400137919,1767147040841,-200.0,0.0001717,2]
[400137921,1767147040852,-200.0,0.0001717,2]
[400137924,1767147040862,-200.0,0.00017342,2]
[400137926,1767147040874,-328.1579157,0.00017347,2]
[400137928,1767147040888,-450.0349624,0.00017472,2]
[400137930,1767147040898,-575.24,0.00017498,2]
[400137932,1767147040909,-200.0,0.00017515,2]
[400137934,1767147040919,-200.0,0.0001769,2]
[400137937,1767147040930,-1000.0,0.00017711,2]
[400137939,1767147040941,-436.52,0.00017765,2]
[400137941,1767147040951,-670.0,0.0001777,2]
[400137944,1767147040966,-12326.8812841,0.00017783,2]
[400137946,1767147040977,-935.0,0.00017818,2]
[400137949,1767147040993,-424.2,0.00017892,2]
[400137951,1767147041004,-2750.498995,0.00018283,2]
[400137953,1767147041016,-500.0,0.00018404,2]
[400137955,1767147041028,-507.17704584,0.00018404,2]
[400137958,1767147041040,-150.99,0.00018533,2]
[400137960,1767147041052,-150.99,0.00018533,2]
[400137962,1767147041064,-520.39,0.00018533,5]
[400137964,1767147041076,-9999.99,0.00018533,2]
[400137966,1767147041086,-9999.99,0.00018533,2]
[400137969,1767147041098,-6099.35,0.00018533,2]
[400137971,1767147041110,-999.99,0.00018533,2]
[400137973,1767147041122,-4046.74,0.00018533,2]
[400137976,1767147041135,-436.52,0.00018654,2]
[400137978,1767147041152,-167.53,0.00018746,2]
[400137980,1767147041163,-299.65084329,0.00019,2]
[400137983,1767147041176,-679.0,0.00019003,2]
[400137985,1767147041188,-200.21585958,0.00019082,2]
[400137987,1767147041199,-6572.4387253,0.00019149,2]
[400137989,1767147041213,-500.0,0.00019178,2]
[400137991,1767147041224,-173.500349,0.00019178,2]
[400137994,1767147041234,-173.500349,0.00019178,2]
[400137996,1767147041246,-173.500349,0.00019178,2]
[400137998,1767147041256,-173.500349,0.00019178,2]
[400138000,1767147041267,-436.52,0.00019542,2]
[400138002,1767147041278,-2668.81344284,0.00019614,2]
[400138005,1767147041289,-151.0,0.00019615,2]
[400138007,1767147041300,-1466.5093053,0.00019634,2]
[400138009,1767147041311,-1000.0,0.00019679,2]
[400138011,1767147041332,-424.2,0.00020171,2]
[400138013,1767147041342,-379.43,0.00020187,2]
[400138016,1767147041353,-436.52,0.0002043,2]
[400138018,1767147041364,-311.68557979,0.00020443,2]
[400138020,1767147041375,-500.0,0.000207,2]
[400138022,1767147041386,-500.0,0.000207,2]
[400138024,1767147041400,-195.33977356,0.00021071,2]
[400138026,1767147041411,-1000.0,0.00021248,2]
[400138029,1767147041422,-1000.0,0.00021248,2]
[400138031,1767147041433,-436.52,0.00021319,2]
[400138033,1767147041443,-292.53514197,0.00021378,2]
[400138035,1767147041454,-292.53514197,0.00021378,2]
[400138037,1767147041464,-1000.0,0.00021646,2]
[400138039,1767147041475,-1500.0,0.00021796,2]
[400138041,1767147041485,-846.30374141,0.00021796,2]
[400138044,1767147041496,-5000.0,0.00021918,2]
[400138046,1767147041507,-156.915545,0.00021918,2]
[400138048,1767147041517,-156.915545,0.00021918,2]
[400138050,1767147041528,-156.915545,0.00021918,2]
[400138052,1767147041538,-156.915545,0.00021918,2]
[400138054,1767147041549,-188.72,0.0002192,2]
[400138057,1767147041560,-188.72,0.0002192,2]
[400138059,1767147041571,-188.72,0.0002192,2]
[400138061,1767147041583,-4166.13885357,0.00022,2]
[400138063,1767147041594,-292.66,0.00022,7]
[400138065,1767147041606,-436.52,0.00022207,2]
[400138067,1767147041616,-360.61314329,0.00022344,2]
[400138070,1767147041626,-424.2,0.00022451,2]
[400138072,1767147041637,-2668.81344284,0.00022527,2]
[400138074,1767147041649,-290.951119,0.00022897,2]
[400138076,1767147041659,-230.077355,0.00023095,2]
[400138078,1767147041669,-230.077355,0.00023095,2]
[400138080,1767147041681,-230.077355,0.00023095,2]
[400138082,1767147041691,-230.077355,0.00023095,2]
[400138084,1767147041702,-436.52,0.00023095,2]
[400138087,1767147041713,-1000.0,0.00023614,2]
[400138089,1767147041727,-436.52,0.00023983,2]
[400138091,1767147041738,-311.68557979,0.00024086,2]
[400138093,1767147041748,-151.0,0.00024086,2]
[400138096,1767147041759,-173.500349,0.00024086,2]
[400138098,1767147041770,-173.500349,0.00024086,2]
[400138100,1767147041781,-173.500349,0.00024086,2]
[400138102,1767147041791,-173.500349,0.00024086,2]
[400138104,1767147041802,-152.447764,0.00024658,2]
[400138106,1767147041812,-424.2,0.0002473,2]
[400138108,1767147041822,-287.769875,0.000248,7]
[400138111,1767147041834,-156.915545,0.000248,7]
[400138113,1767147041844,-156.915545,0.000248,7]
[400138115,1767147041855,-156.915545,0.000248,7]
[400138117,1767147041866,-156.915545,0.000248,7]
[400138119,1767147041877,-290.951119,0.000248,7]
[400138122,1767147041888,-151.0,0.000248,7]
[400138124,1767147041898,-265013.844079,0.000248,3]
[400138126,1767147041909,-230.077355,0.000248,7]
[400138128,1767147041923,-230.077355,0.000248,7]
[400138130,1767147041933,-230.077355,0.000248,7]
[400138132,1767147041944,-230.077355,0.000248,7]
[400138135,1767147041955,-151.0,0.000248,7]
[400138137,1767147041966,-173.500349,0.000248,7]
[400138138,1767147041977,-173.500349,0.000248,7]
[400138139,1767147041987,-173.500349,0.000248,7]
[400138140,1767147041998,-173.500349,0.000248,7]
[400138141,1767147042008,-436.52,0.00024872,2]
[400138142,1767147042019,-670.0,0.00024878,2]
[400138143,1767147042029,-415.97062473,0.00025,3]
[400138144,1767147042039,-151.2,0.00025,2]
[400138145,1767147042050,-447.0,0.00025219,7]
[400138146,1767147042060,-195.33977356,0.00025441,2]
[400138147,1767147042071,-2668.81344284,0.00025441,2]
[400138148,1767147042082,-292.66,0.000256,7]
[400138149,1767147042092,-444.0,0.00025755,2]
[400138151,1767147042102,-436.52,0.0002576,2]
[400138153,1767147042113,-447.0,0.00025853,2]
[400138155,1767147042124,-5529.0,0.000259,5]
[400138158,1767147042135,-444.0,0.00026006,2]
[400138160,1767147042146,-1972.0,0.0002606,2]
[400138162,1767147042157,-2258.0,0.0002606,2]
[400138164,1767147042168,-1972.0,0.0002624,7]
[400138166,1767147042179,-2258.0,0.00026274,2]
[400138169,1767147042191,-444.0,0.00026301,7]
[400138171,1767147042202,-2016.0,0.0002637,2]
[400138173,1767147042212,-2258.0,0.00026442,2]
[400138175,1767147042223,-2258.0,0.00026549,2]
[400138177,1767147042234,-2016.0,0.00026645,7]
[400138179,1767147042244,-436.52,0.00026648,2]
[400138181,1767147042255,-379.43,0.00026676,2]
[400138183,1767147042266,-2258.0,0.00026838,2]
[400138186,1767147042277,-2258.0,0.00026974,2]
[400138188,1767147042288,-424.2,0.00027009,2]
[400138191,1767147042311,-1972.0,0.00027303,2]
[400138193,1767147042326,-208.18432427,0.00027397,14]
[400138196,1767147042341,-500.0,0.00027397,20]
[400138198,1767147042353,-157.54,0.00027397,30]
[400138200,1767147042366,-151.0,0.00027397,7]
[400138202,1767147042377,-151.0,0.00027397,7]
[400138205,1767147042389,-1972.0,0.00027406,2]
[400138207,1767147042401,-2258.0,0.00027437,2]
[400138209,1767147042412,-2258.0,0.0002751,7]
[400138211,1767147042424,-436.52,0.00027536,2]
[400138213,1767147042435,-2258.0,0.00027652,2]
[400138216,1767147042447,-1338.6,0.00027671,2]
[400138218,1767147042459,-292.66,0.000277,7]
[400138220,1767147042470,-311.68557979,0.00027729,2]
[400138222,1767147042482,-1972.0,0.00027753,2]
[400138224,1767147042494,-2258.0,0.00027853,2]
[400138227,1767147042507,-1102.79793028,0.00028355,2]
[400138229,1767147042518,-2668.81344284,0.00028355,2]
[400138274,1767147042938,-436.52,0.00028425,2]
[400138277,1767147042964,-2258.0,0.00028504,2]
[400138280,1767147042981,-1972.0,0.00028523,2]
[400138282,1767147042991,-1974.0,0.00028721,2]
[400138284,1767147043001,-424.2,0.00029289,2]
[400138286,1767147043011,-436.52,0.00029313,2]
[400138288,1767147043020,-152.0,0.00029633,3]
[400138290,1767147043030,-4833.274,0.00029789,2]
[400138292,1767147043040,-566.856,0.00029789,2]
[400138294,1767147043050,-195.33977356,0.00029812,2]
[400138296,1767147043060,-2000.0,0.0003,3]
[400138298,1767147043070,-274.05,0.000302,30]
[400138300,1767147043079,-436.52,0.00030201,2]
[400138302,1767147043088,-436.52,0.0003109,2]
[400138304,1767147043098,-1102.79793028,0.00031268,2]
[400138306,1767147043107,-2668.81344284,0.00031268,2]
[400138308,1767147043118,-311.68557979,0.00031371,2]
[400138310,1767147043127,-152.0,0.00031554,4]
[400138312,1767147043137,-424.2,0.00031568,2]
[400138314,1767147043146,-436.52,0.00031978,2]
[400138316,1767147043156,-157.54,0.00032232,30]
[400138318,1767147043165,-150.49594183,0.00032435,30]
[400138321,1767147043175,-153.08,0.00032543,2]
[400138323,1767147043186,-436.52,0.00032866,2]
[400138325,1767147043195,-326.765175,0.00032877,31]
[400138327,1767147043205,-326.765175,0.00032877,31]
[400138329,1767147043214,-326.765175,0.00032877,31]
[400138331,1767147043224,-326.765175,0.00032877,31]
[400138332,1767147043234,-326.765175,0.00032877,31]
[400138335,1767147043244,-326.765175,0.00032877,31]
[400138337,1767147043254,-326.765175,0.00032877,31]
[400138339,1767147043263,-326.765175,0.00032877,31]
[400138341,1767147043274,-1841.33,0.000329,14]
[400138343,1767147043283,-379.43,0.00033165,2]
[400138345,1767147043293,-152.0,0.00033476,5]
[400138347,1767147043303,-159.160617,0.00033584,31]
[400138349,1767147043313,-151.0,0.00033584,14]
[400138351,1767147043326,-436.52,0.00033754,2]
[400138353,1767147043336,-151.0,0.00033813,30]
[400138355,1767147043346,-424.2,0.00033848,3]
[400138357,1767147043355,-195.33977356,0.00034182,2]
[400138359,1767147043366,-1102.79793028,0.00034182,2]
[400138361,1767147043377,-2668.81344284,0.00034182,2]
[400138363,1767147043387,-1841.33,0.000345,14]
[400138366,1767147043399,-154.51036782,0.00034521,7]
[400138369,1767147043409,-150.0,0.00034521,7]
[400138372,1767147043419,-155.93791915,0.00034521,7]
[400138375,1767147043429,-150.0,0.00034521,7]
[400138378,1767147043438,-155.30876218,0.00034521,7]
[400138381,1767147043448,-241.18537701,0.00035,120]
[400138384,1767147043457,-311.68557979,0.00035014,2]
[400138387,1767147043467,-261.6087,0.0003522,30]
[400138390,1767147043476,-152.0,0.00035397,6]
[400138392,1767147043485,-190.07092753,0.00035616,38]
[400138394,1767147043494,-163.638723,0.00035616,31]
[400138396,1767147043504,-163.638723,0.00035616,31]
[400138398,1767147043514,-163.638723,0.00035616,31]
[400138401,1767147043524,-163.638723,0.00035616,31]
[400138403,1767147043534,-163.638723,0.00035616,31]
[400138405,1767147043544,-163.638723,0.00035616,31]
[400138407,1767147043553,-163.638723,0.00035616,31]
[400138409,1767147043563,-163.638723,0.00035616,31]
[400138411,1767147043572,-424.2,0.00036127,4]
[400138413,1767147043582,-682.58199793,0.00036377,7]
[400138415,1767147043592,-502.0,0.000368,60]
[400138417,1767147043601,-1076.8715827,0.00037022,5]
[400138419,1767147043611,-157.54,0.00037067,30]
[400138421,1767147043621,-500.0,0.00037073,5]
[400138423,1767147043631,-500.0,0.00037073,5]
[400138425,1767147043640,-1102.79793028,0.00037096,2]
[400138427,1767147043650,-2668.81344284,0.00037096,2]
[400138429,1767147043660,-1841.33,0.000371,14]
[400138431,1767147043669,-152.0,0.00037318,7]
[400138433,1767147043680,-999.99120299,0.00037621,5]
[400138435,1767147043690,-504.50080978,0.00037621,5]
[400138438,1767147043700,-171.82586519,0.00037965,30]
[400138440,1767147043709,-156.54070916,0.00037965,30]
[400138442,1767147043718,-219.0,0.00038,60]
[400138443,1767147043728,-171.106301,0.00038356,120]
[400138445,1767147043738,-151.0,0.00038356,120]
[400138448,1767147043747,-233.207642,0.00038356,120]
[400138450,1767147043757,-164.31616,0.00038356,120]
[400138452,1767147043767,-166.626892,0.00038356,120]
[400138454,1767147043777,-151.0,0.00038356,120]
[400138456,1767147043787,-301.979788,0.00038356,120]
[400138458,1767147043796,-165.009956,0.00038356,120]
[400138460,1767147043806,-151.0,0.00038356,120]
[400138462,1767147043816,-193.624761,0.00038356,120]
[400138464,1767147043826,-151.0,0.00038356,120]
[400138466,1767147043835,-170.011264,0.00038356,120]
[400138468,1767147043845,-151.0,0.00038356,120]
[400138470,1767147043854,-151.0,0.00038356,120]
[400138472,1767147043863,-151.0,0.00038356,120]
[400138474,1767147043873,-151.0,0.00038356,120]
[400138476,1767147043882,-151.0,0.00038356,120]
[400138478,1767147043891,-151.0,0.00038356,120]
[400138480,1767147043901,-151.0,0.00038356,120]
[400138482,1767147043910,-151.0,0.00038356,120]
[400138484,1767147043919,-151.0,0.00038356,120]
[400138486,1767147043929,-151.0,0.00038356,120]
[400138488,1767147043938,-151.0,0.00038356,120]
[400138490,1767147043948,-151.0,0.00038356,120]
[400138492,1767147043958,-151.0,0.00038356,60]
[400138494,1767147043967,-151.0,0.00038356,120]
[400138496,1767147043977,-151.0,0.00038356,120]
[400138498,1767147043986,-154.808459,0.00038356,120]
[400138500,1767147043996,-159.564101,0.00038356,120]
[400138502,1767147044006,-151.0,0.00038356,120]
[400138504,1767147044017,-192.861059,0.00038356,120]
[400138506,1767147044027,-151.0,0.00038356,120]
[400138508,1767147044037,-175.801301,0.00038356,120]
[400138510,1767147044046,-151.0,0.00038356,120]
[400138512,1767147044056,-208.791326,0.00038356,120]
[400138514,1767147044066,-175.822291,0.00038356,120]
[400138516,1767147044076,-151.0,0.00038356,120]
[400138519,1767147044086,-168.674294,0.00038356,120]
[400138521,1767147044096,-151.0,0.00038356,120]
[400138523,1767147044105,-151.0,0.00038356,120]
[400138525,1767147044115,-151.0,0.00038356,120]
[400138527,1767147044125,-151.000061,0.00038356,120]
[400138529,1767147044135,-151.0,0.00038356,120]
[400138531,1767147044145,-151.0,0.00038356,120]
[400138533,1767147044156,-235.480655,0.00038356,120]
[400138535,1767147044165,-151.0,0.00038356,120]
[400138537,1767147044175,-151.0,0.00038356,120]
[400138539,1767147044184,-151.0,0.00038356,120]
[400138541,1767147044194,-151.0,0.00038356,120]
[400138543,1767147044203,-151.0,0.00038356,120]
[400138545,1767147044213,-151.0,0.00038356,120]
[400138547,1767147044223,-151.0,0.00038356,120]
[400138549,1767147044232,-151.0,0.00038356,120]
[400138551,1767147044242,-165.611638,0.00038356,120]
[400138553,1767147044251,-151.0,0.00038356,120]
[400138555,1767147044261,-151.0,0.00038356,120]
[400138557,1767147044271,-253.609166,0.00038356,120]
[400138559,1767147044280,-186.636161,0.00038356,120]
[400138561,1767147044289,-248.389073,0.00038356,120]
[400138563,1767147044298,-151.0,0.00038356,120]
[400138565,1767147044308,-188.951882,0.00038356,120]
[400138567,1767147044318,-182.766983,0.00038356,120]
[400138569,1767147044331,-159.972438,0.00038356,120]
[400138572,1767147044341,-210.320279,0.00038356,120]
[400138574,1767147044351,-159.972438,0.00038356,120]
[400138576,1767147044360,-159.972438,0.00038356,120]
[400138578,1767147044370,-159.972438,0.00038356,120]
[400138580,1767147044380,-159.972438,0.00038356,120]
[400138582,1767147044390,-424.2,0.00038406,5]
[400138584,1767147044399,-195.33977356,0.00038553,2]
[400138586,1767147044409,-311.68557979,0.00038657,2]
[400138588,1767147044419,-1338.6,0.00038904,2]
[400138590,1767147044429,-1841.33,0.000392,14]
[400138592,1767147044438,-152.0,0.00039239,8]
[400138594,1767147044448,-191.8,0.000395,60]
[400138596,1767147044457,-379.43,0.00039654,2]
[400138598,1767147044467,-292.66,0.000397,14]
[400138600,1767147044477,-860.257,0.0003997,56]
[400138602,1767147044487,-163.638723,0.0003999,120]
[400138604,1767147044497,-163.638723,0.0003999,120]
[400138606,1767147044507,-163.638723,0.0003999,120]
[400138608,1767147044516,-163.638723,0.0003999,120]
[400138610,1767147044526,-282.507418,0.0003999,120]
[400138612,1767147044536,-156.915545,0.0003999,120]
[400138614,1767147044545,-156.915545,0.0003999,120]
[400138616,1767147044554,-156.915545,0.0003999,120]
[400138618,1767147044564,-156.915545,0.0003999,120]
[400138620,1767147044573,-9469.50351066,0.0004,30]
[400138622,1767147044582,-421.98553996,0.0004,7]
[400138624,1767147044591,-979.40068788,0.0004,7]
[400138626,1767147044601,-500.0,0.0004,7]
[400138628,1767147044610,-14258.12368823,0.0004,4]
[400138630,1767147044620,-284.02,0.0004,120]
[400138633,1767147044630,-653.96,0.0004,120]
[400138635,1767147044639,-344.05,0.0004,120]
[400138637,1767147044648,-197.25,0.0004,120]
[400138639,1767147044658,-151.0,0.0004,120]
[400138641,1767147044667,-151.0,0.0004,120]
[400138643,1767147044676,-151.0,0.0004,120]
[400138645,1767147044685,-151.0,0.0004,120]
[400138647,1767147044695,-151.0,0.0004,120]
[400138649,1767147044704,-151.0,0.0004,120]
[400138651,1767147044714,-326.765175,0.0004,120]
[400138653,1767147044723,-326.765175,0.0004,120]
[400138655,1767147044733,-326.765175,0.0004,120]
[400138657,1767147044743,-326.765175,0.0004,120]
[400138659,1767147044753,-151.0,0.0004,120]
[400138661,1767147044763,-151.0,0.0004,120]
[400138663,1767147044772,-151.0,0.0004,120]
[400138665,1767147044781,-151.0,0.0004,120]
[400138667,1767147044790,-151.0,0.0004,120]
[400138669,1767147044800,-230.077355,0.0004,120]
[400138671,1767147044810,-230.077355,0.0004,120]
[400138673,1767147044819,-230.077355,0.0004,120]
[400138675,1767147044829,-230.077355,0.0004,120]
[400138677,1767147044838,-1102.79793028,0.00040009,15]
[400138679,1767147044848,-2668.81344284,0.00040009,15]
[400138681,1767147044857,-963.16,0.00040018,2]
[400138683,1767147044867,-424.2,0.00040686,6]
[400138685,1767147044876,-601.56167756,0.00041,30]
[400138687,1767147044886,-241.88223489,0.00041,15]
[400138688,1767147044895,-189.37459138,0.00041095,120]
[400138689,1767147044904,-999.0,0.00041095,120]
[400138690,1767147044913,-150.0,0.00041096,10]
[400138691,1767147044923,-257.21417818,0.00041096,2]
[400138692,1767147044933,-316.78487921,0.00041096,81]
[400138693,1767147044942,-196.660378,0.00041096,120]
[400138694,1767147044951,-290.951119,0.00041096,120]
[400138695,1767147044960,-152.0,0.0004116,9]
[400138696,1767147044969,-157.25083391,0.0004116,5]
[400138697,1767147044979,-1878.919589,0.00041163,120]
[400138698,1767147044988,-417.0,0.00041694,30]
[400138700,1767147044997,-502.03,0.000418,120]
[400138702,1767147045007,-347.47384299,0.0004188,120]
[400138704,1767147045017,-419.16,0.000419,120]
[400138706,1767147045027,-27352.95,0.000419,14]
[400138708,1767147045036,-153.342155,0.000419,120]
[400138710,1767147045046,-151.0,0.000419,120]
[400138712,1767147045055,-151.0,0.000419,120]
[400138714,1767147045065,-173.500349,0.000419,28]